[Event "Mitropa Cup Open 2024"]
[Site "Apolda"]
[Date "2024.02.17"]
[Round "3.13"]
[White "Subelj, Jan"]
[Black "Baidetskyi, Valentin"]
[Result "1/2-1/2"]
[ECO "C01"]
[WhiteElo "2512"]
[BlackElo "2499"]
[Annotator "TA"]
[PlyCount "75"]
[EventDate "2024.02.15"]
[EventType "team-tourn"]
[EventCountry "GER"]
[SourceTitle "playchess.com"]
[Source "ChessBase"]
[SourceQuality "1"]
[WhiteTeam "Slovenia"]
[BlackTeam "Austria"]
[WhiteTeamCountry "SLO"]
[BlackTeamCountry "AUT"]
[TimeControl "40/5400+30:1800+30"]

{[%evp 10,75,12,8,12,2,10,0,0,-3,0,0,0,-8,-6,-12,-23,-10,-13,-37,0,0,0,0,0,0,0,0,0,0,0,0,13,0,0,0,0,0,0,0,12,0,11,14,16,0,0,0,0,0,0,0,0,0,0,0,0,0,0,0,0,0,0,0,0,0,0,0]} 1. e4 {[%emt 0:00:34]} e6 {[%emt 0:00:02]} 2. d4 {[%emt 0:00:54]} d5 {[%emt 0:00:01]} 3. exd5 {[%emt 0:01:59]} exd5 {[%emt 0:00:08]} 4. Nf3 {[%emt 0:00:06]} Nf6 {[%emt 0:01:06]} 5. Bd3 {[%emt 0:00:39]} Bd6 {[%emt 0:00:10]} 6. Qe2+ {[%emt 0:01:48]} Be6 {[%emt 0:11:14]} 7. Ng5 {[%emt 0:01:17]} Qe7 {[%emt 0:00:19]} 8. Nxe6 {[%emt 0:01:01]} fxe6 {[%emt 0:01:47]} 9. Nd2 {[%emt 0:05:56]} Nc6 {[%emt 0:08:16]} 10. Nf3 {[%emt 0:05:26]} O-O {[%emt 0:01:17]} 11. Bd2 {[%emt 0:04:25]} Rae8 {[%emt 0:08:31]} 12. O-O {[%emt 0:10:46]} e5 {[%emt 0:00:59]} 13. dxe5 {[%emt 0:00:18]} Nxe5 {[%emt 0:01:24]} 14. Rae1 {[%emt 0:01:24]} Nxd3 {[%emt 0:07:06]} (14... Qd7 {simplifies} 15. Nxe5 Bxe5 16. Qd1 Bxb2 17. Rxe8 Rxe8 18. c3 Ba3) 15. Qxd3 {[%emt 0:05:09] The position is equal.} Qf7 {[%emt 0:06:38]} 16. Ng5 {[%emt 0:03:26] Dodges Ne4} Qh5 {[%emt 0:02:37][%csl Gd6][%cal Rh5h2] [#]} 17. h3 {[%emt 0:00:10]} Rxe1 {[%emt 0:00:14]} 18. Rxe1 {[%emt 0:00:10]} Re8 {[%emt 0:00:05] Repels Re2} 19. Rxe8+ {[%emt 0:00:40]} Qxe8 {[%emt 0:00:03]} 20. Bc3 {[%emt 0:03:00]} Be5 {[%emt 0:05:33]} 21. Kf1 {[%emt 0:04:53]} c6 {[%emt 0:05:53]} 22. Nf3 {[%emt 0:05:35]} Bxc3 {[%emt 0:00:05]} 23. Qxc3 $11 {[%emt 0:00:09][%mdl 4096] Endgame. KQN-KQN} Qe7 {[%emt 0:01:41]} 24. Qd4 {[%emt 0:04:25]} a6 {[%emt 0:02:33]} 25. Qf4 {[%emt 0:01:00]} g6 {[%emt 0:00:33]} 26. h4 {[%emt 0:08:28]} Kg7 {[%emt 0:04:23]} 27. g4 {[%emt 0:01:01][%cal Bg2g4,Bg4g5][%mdl 32]} h5 {[%emt 0:02:44]} 28. g5 {[%emt 0:02:07]} Ne4 {[%emt 0:00:20]} 29. Kg2 {[%emt 0:05:07]} Nd6 {[%emt 0:02:55]} 30. b3 {[%emt 0:06:21]} Nf5 {[%emt 0:01:53]} 31. c4 {[%emt 0:03:18]} dxc4 {[%emt 0:06:10]} 32. bxc4 {[%emt 0:02:16]} b5 {[%emt 0:02:08]} 33. Nd4 {[%emt 0:05:21]} Nxd4 {[%emt 0:01:25]} 34. Qxd4+ {[%emt 0:00:05]} Kf7 {[%emt 0:00:44]} 35. c5 {[%emt 0:00:42]} Qe6 {[%emt 0:01:51]} 36. Qf4+ {[%emt 0:00:14]} Ke7 {[%emt 0:01:05]} 37. Qc7+ {[%emt 0:00:15]} Ke8 {[%emt 0:00:25]} 38. Qb8+ {[%emt 0:09:05] A balanced but interesting game.   Weighted Error Value: White=0.03 (flawless) /Black=0.03 (flawless) .  Inaccurate:     	---       	Black=1      OK:         	White=10    	Black=15} 1/2-1/2

[Event "Mitropa Cup Open 2024"]
[Site "Apolda"]
[Date "2024.02.17"]
[Round "3.14"]
[White "Peyrer, Konstantin"]
[Black "Goroshkov, Maksym"]
[Result "1-0"]
[ECO "A70"]
[WhiteElo "2439"]
[BlackElo "2338"]
[Annotator "TA"]
[PlyCount "89"]
[EventDate "2024.02.15"]
[EventType "team-tourn"]
[EventCountry "GER"]
[SourceTitle "playchess.com"]
[Source "ChessBase"]
[SourceQuality "1"]
[WhiteTeam "Austria"]
[BlackTeam "Slovenia"]
[WhiteTeamCountry "AUT"]
[BlackTeamCountry "SLO"]
[TimeControl "40/5400+30:1800+30"]

{[%evp 16,89,7,7,71,70,68,66,108,107,124,122,181,101,116,113,114,103,125,121,131,130,169,80,76,72,77,96,86,80,120,118,107,82,121,108,184,153,148,143,189,150,121,64,67,75,45,56,163,164,208,203,222,210,247,252,250,246,1416,1385,1866,2045,2141,1884,1991,1969,29978,29977,29987,29986,29992,29993,29993,29994,29994,29995]} 1. e4 {[%emt 0:00:05]} d6 {[%emt 0:01:07]} 2. d4 {[%emt 0:00:22]} g6 {[%emt 0:00:03]} 3. c4 {[%emt 0:02:06]} Nf6 {[%emt 0:00:05]} 4. Nc3 {[%emt 0:00:06]} Bg7 {[%emt 0:00:05]} 5. h3 {[%emt 0:00:26]} O-O {[%emt 0:01:11]} 6. Be3 {[%emt 0:00:19]} c5 {[%emt 0:00:15]} 7. d5 {[%emt 0:02:38]} e6 {[%emt 0:00:31]} 8. Nf3 {[%emt 0:00:08]} exd5 {[%emt 0:00:08]} 9. cxd5 {[%emt 0:00:24]} Qa5 {[%emt 0:09:01]} (9... Re8 $11) 10. Nd2 $16 {[%emt 0:00:15]} Re8 {[%emt 0:04:39]} 11. Bd3 {[%emt 0:03:29]} a6 {[%emt 0:03:41] White is slightly better.} 12. a4 {[%emt 0:06:09][%cal Ba2a4,Ba4a5][%mdl 32]} Nfd7 {[%emt 0:04:30]} 13. O-O {[%emt 0:03:02]} Ne5 {[%emt 0:03:10] [#]} (13... Qc7 $16 14. f4 Nf8) 14. Be2 {[%emt 0:00:19]} (14. Bc2 $1 $18) 14... f5 {[%emt 0:00:45]} 15. Qc2 {[%emt 0:16:51]} Qd8 {[%emt 0:01:45]} 16. a5 {[%emt 0:00:38]} Qh4 {[%emt 0:04:30]} 17. f4 {[%emt 0:04:59]} Nf7 {[%emt 0:02:27]} 18. Nc4 {[%emt 0:04:34] Nb6 would now be deadly.} fxe4 {[%emt 0:08:11][%cal Oc8h3]} 19. Nxe4 {[%emt 0:00:13]} (19. Nb6 $18 {has better winning chances.} Bxh3 20. Nxa8) 19... Bf5 {[%emt 0:01:45]} 20. Bd3 {[%emt 0:00:36][%cal Be2d3,Bd3e4,Be4f3][%mdl 32]} (20. Ncxd6 $2 {loses.} Nxd6 21. Qxc5 Nxe4 $19 (21... Rxe4 $2 22. Bd3 $19)) 20... Bxe4 {[%emt 0:01:39]} 21. Bxe4 {[%emt 0:00:06]} Nd7 {[%emt 0:00:08]} 22. Rae1 {[%emt 0:01:51]} Bd4 {[%emt 0:06:18]} 23. Bxd4 {[%emt 0:01:27]} cxd4 {[%emt 0:00:04]} 24. Qd2 {[%emt 0:00:27]} Qf6 {[%emt 0:00:46]} 25. Bf3 {[%emt 0:01:33]} Nf8 {[%emt 0:08:46] Wards off Re6} (25... d3 $16) 26. Nb6 {[%emt 0:06:20]} Rad8 {[%emt 0:00:26]} 27. Rc1 {[%emt 0:04:23][%cal Be1c1,Bc1c3,Bc3d3][%mdl 32] White has more active pieces.} Re3 {[%emt 0:06:22]} (27... Re7 $16 {keeps fighting.} 28. Rc4 d3) 28. Nc4 {[%emt 0:00:58]} Re7 {[%emt 0:01:38]} 29. Kh2 {[%emt 0:04:08]} ({White should try} 29. Rce1 $16) 29... Rde8 $14 {[%emt 0:00:58]} 30. Rfd1 {[%emt 0:02:22]} d3 {[%emt 0:03:08]} 31. Rc3 $36 {[%emt 0:00:07][%mdl 2048] White is more active.} Nh6 {[%emt 0:01:32]} ({Better is} 31... Nd7 $14) 32. Rxd3 $18 {[%emt 0:01:15]} Nf5 {[%emt 0:02:03]} 33. Qc3 {[%emt 0:05:15]} Qh4 {[%emt 0:00:33] White must now prevent ...Qg3+.} 34. Bg4 {[%emt 0:00:05]} Re4 {[%emt 0:06:55] [#]} 35. Rf1 $1 {[%emt 0:01:30] And now Bxf5 would win.} Rc8 {[%emt 0:09:24]} 36. b3 {[%emt 0:00:07][%cal Bb2b3,Bb3c4][%mdl 32] Strongly threatening Bxf5.} Nd7 $2 {[%emt 0:00:09]} (36... Rc7 37. Bxf5 gxf5) 37. Bxf5 {[%emt 0:00:12]} Rcxc4 {[%emt 0:02:43]} 38. bxc4 {[%emt 0:00:12]} gxf5 {[%emt 0:00:02]} 39. Rg3+ {[%emt 0:00:13]} Kf7 {[%emt 0:00:04]} 40. Qh8 {[%emt 0:01:41]} Qh6 {[%emt 0:06:47]} 41. Qg8+ {[%emt 0:30:56] White mates.} Kf6 {[%emt 0:30:03]} 42. Qd8+ {[%emt 0:00:08]} Re7 {[%emt 0:00:03]} 43. Re1 {[%emt 0:00:08][%csl Ge1][%cal Rd8e7,Bf1e1,Be1e6,Be6e7][%mdl 32]} Qf8 {[%emt 0:00:06]} 44. Re6+ {[%emt 0:00:07]} Kf7 {[%emt 0:00:07]} 45. Rxe7+ {[%emt 0:00:04] Weighted Error Value: White=0.11 (very precise) /Black=0.33.  Mistake:       	White=3     	Black=5      Inaccurate:     	---       	Black=4      OK:         	White=11    	Black=7      Best:        	White=5     	Black=3} 1-0

[Event "Mitropa Cup Open 2024"]
[Site "Apolda"]
[Date "2024.02.17"]
[Round "3.15"]
[White "Lavrencic, Matic"]
[Black "Morgunov, Marc"]
[Result "1/2-1/2"]
[ECO "C50"]
[WhiteElo "2299"]
[BlackElo "2368"]
[Annotator "TA"]
[PlyCount "60"]
[EventDate "2024.02.15"]
[EventType "team-tourn"]
[EventCountry "GER"]
[SourceTitle "playchess.com"]
[Source "ChessBase"]
[SourceQuality "1"]
[WhiteTeam "Slovenia"]
[BlackTeam "Austria"]
[WhiteTeamCountry "SLO"]
[BlackTeamCountry "AUT"]
[TimeControl "40/5400+30:1800+30"]

{[%evp 10,60,10,1,16,9,13,0,0,0,6,9,25,13,19,21,17,29,32,0,27,0,0,-33,-41,-37,-46,-32,0,0,0,-14,-8,-21,0,0,4,4,6,6,25,12,22,16,37,8,14,9,26,0,0,0,0]} 1. e4 {[%emt 0:00:35]} e5 {[%emt 0:00:19]} 2. Nf3 {[%emt 0:04:36]} Nc6 {[%emt 0:00:20]} 3. Bc4 {[%emt 0:05:19]} Bc5 {[%emt 0:01:55]} 4. Nc3 {[%emt 0:04:46]} Nf6 {[%emt 0:05:27]} 5. d3 {[%emt 0:00:11]} h6 {[%emt 0:05:45]} 6. h3 {[%emt 0:06:12]} a6 {[%emt 0:05:29]} 7. a4 {[%emt 0:00:34]} d6 {[%emt 0:00:45]} 8. Be3 {[%emt 0:00:57]} Bxe3 {[%emt 0:08:08]} 9. fxe3 {[%emt 0:00:33]} Qe7 {[%emt 0:03:45]} 10. Qd2 {[%emt 0:06:14]} Be6 {[%emt 0:05:01]} 11. Nd5 {[%emt 0:01:56]} Bxd5 {[%emt 0:00:59]} 12. exd5 {[%emt 0:00:29]} Nb8 {[%emt 0:01:46]} 13. e4 {[%emt 0:02:02]} Nbd7 {[%emt 0:06:21]} 14. Qf2 {[%emt 0:22:35]} Nh5 {[%emt 0:10:48]} 15. a5 {[%emt 0:01:46]} O-O {[%emt 0:00:26]} 16. Qh4 {[%emt 0:03:58]} Qxh4+ {[%emt 0:01:11]} 17. Nxh4 {[%emt 0:00:12]} Ng3 {[%emt 0:05:11] Prevents g4} 18. Rg1 {[%emt 0:00:10]} f5 {[%emt 0:01:40]} 19. Nxf5 {[%emt 0:03:02]} Nxf5 {[%emt 0:00:08]} 20. exf5 {[%emt 0:00:04]} Rxf5 {[%emt 0:00:11]} 21. Ke2 {[%emt 0:00:55]} Raf8 {[%emt 0:12:18]} 22. Raf1 {[%emt 0:00:55] Inhibits Rf2+.} Rxf1 {[%emt 0:01:04]} 23. Rxf1 {[%emt 0:00:27]} Rxf1 {[%emt 0:01:04]} 24. Kxf1 $11 {[%emt 0:00:15][%mdl 4096] Endgame. KB-KN} Kf7 {[%emt 0:00:05]} 25. Ke2 {[%emt 0:01:04]} Ke7 {[%emt 0:02:24]} 26. b4 {[%emt 0:01:03]} Nf6 {[%emt 0:00:20]} 27. Kf3 {[%emt 0:01:14]} Kd7 {[%emt 0:02:26]} 28. Bb3 {[%emt 0:01:07]} Kc8 {[%emt 0:09:58]} 29. c4 {[%emt 0:01:43]} b6 {[%emt 0:00:17]} 30. Ba4 {[%emt 0:00:53]} bxa5 {[%emt 0:00:45] Weighted Error Value: White=0.09 (flawless) /Black=0.09 (flawless) .  Inaccurate:     	White=5     	Black=1      OK:         	White=8     	Black=8      Best:        	---       	Black=1} 1/2-1/2

[Event "Mitropa Cup Open 2024"]
[Site "Apolda"]
[Date "2024.02.17"]
[Round "3.16"]
[White "Dotzer, Lukas"]
[Black "Olenik Campa, Rudi"]
[Result "0-1"]
[ECO "B33"]
[WhiteElo "2335"]
[BlackElo "2299"]
[Annotator "TA"]
[PlyCount "100"]
[EventDate "2024.02.15"]
[EventType "team-tourn"]
[EventCountry "GER"]
[SourceTitle "playchess.com"]
[Source "ChessBase"]
[SourceQuality "1"]
[WhiteTeam "Austria"]
[BlackTeam "Slovenia"]
[WhiteTeamCountry "AUT"]
[BlackTeamCountry "SLO"]
[TimeControl "40/5400+30:1800+30"]

{[%evp 26,100,6,0,0,11,8,10,7,9,25,19,10,24,17,22,20,-16,-8,-13,33,51,33,24,23,19,56,27,12,0,0,0,0,0,0,-61,-59,-41,-7,0,52,46,46,51,57,53,43,-18,-24,-110,-103,-204,-191,-305,-301,-401,-401,-573,-562,-536,-522,-578,-572,-531,-342,-822,-673,-786,-626,-637,-657,-704,-401,-1652,-820,-2152,-1037]} 1. e4 {[%emt 0:00:02]} c5 {[%emt 0:00:04]} 2. Nf3 {[%emt 0:00:04]} Nc6 {[%emt 0:00:03]} 3. d4 {[%emt 0:00:08]} cxd4 {[%emt 0:00:04]} 4. Nxd4 {[%emt 0:00:09]} Nf6 {[%emt 0:00:06]} 5. Nc3 {[%emt 0:00:10]} e5 {[%emt 0:00:04]} 6. Ndb5 {[%emt 0:00:06]} d6 {[%emt 0:00:05]} 7. Nd5 {[%emt 0:00:08]} Nxd5 {[%emt 0:00:04]} 8. exd5 {[%emt 0:00:07]} Nb8 {[%emt 0:00:03]} 9. a4 {[%emt 0:00:10]} Be7 {[%emt 0:00:04] B33: Sizilianisch (Lasker/Pelikan/Sweschnikow-Variante).} 10. Bd2 {[%emt 0:00:26]} O-O {[%emt 0:00:07]} 11. Be2 {[%emt 0:00:58]} Bf5 {[%emt 0:00:21]} 12. O-O {[%emt 0:02:02]} a6 {[%emt 0:00:10]} 13. Na3 {[%emt 0:01:45]} Nd7 {[%emt 0:00:05]} 14. a5 {[%emt 0:03:25]} Bg6 {[%emt 0:02:10]} 15. Nc4 {[%emt 0:02:37]} f5 {[%emt 0:00:21]} 16. Bb4 {[%emt 0:03:43]} Qc7 {[%emt 0:00:16]} 17. Ra3 {[%emt 0:02:19]} Rae8 {[%emt 0:00:07]} 18. Rc3 {[%emt 0:01:38]} Qb8 {[%emt 0:00:06]} 19. Qa1 $146 {[%emt 0:00:50]} ({Predecessor:} 19. Bh5 Rf7 20. Bxg6 hxg6 21. Re1 Bf8 22. Rh3 Nf6 23. Nb6 g5 24. c4 g4 25. Rc3 {0-1 Baches Garcia,G (2326)-Meskovs,N (2562) Titled Tuesday intern op 27th Sep Early blitz 2022 (1)}) 19... Nf6 {[%emt 0:00:13]} 20. Nb6 {[%emt 0:03:24]} Rf7 {[%emt 0:21:17]} 21. Rd1 {[%emt 0:15:13]} f4 {[%emt 0:04:22]} 22. Qa3 {[%emt 0:07:36]} Ne4 {[%emt 0:09:59]} (22... Bf5 $11 {ist überlegen.}) 23. Rc4 $14 {[%emt 0:03:01]} Nf6 $1 {[%emt 0:11:31]} 24. f3 {[%emt 0:05:38]} Bf8 {[%emt 0:05:25]} 25. Re1 {[%emt 0:09:32]} h5 {[%emt 0:10:13]} 26. Bd3 {[%emt 0:07:32]} e4 {[%emt 0:02:50]} 27. Bxe4 {[%emt 0:03:08]} Bxe4 {[%emt 0:01:11]} 28. fxe4 {[%emt 0:00:24]} Ng4 {[%emt 0:01:34]} 29. Bd2 {[%emt 0:06:11]} Qd8 {[%emt 0:03:40]} 30. h3 {[%emt 0:10:17]} (30. Qh3 $11) 30... f3 {[%emt 0:08:50]} 31. gxf3 {[%emt 0:01:50]} (31. hxg4 $2 f2+ (31... hxg4 32. gxf3 gxf3 33. Rf1 $11) 32. Kh2 Qh4+ (32... f1=B 33. Rc8 $16) (32... fxe1=B $2 33. Bxe1 Rf1 34. Bd2 $19) 33. Qh3 fxe1=Q $19) 31... Qh4 $1 {[%emt 0:00:51]} 32. Re2 $1 {[%emt 0:06:39]} (32. fxg4 Qf2+ 33. Kh1 Rf3 $19) (32. hxg4 $2 Qg3+ 33. Kf1 (33. Kh1 $2 Rxf3 $19) 33... Rxf3+ (33... hxg4 34. Ke2 $11) 34. Ke2 Rxa3 35. bxa3 Qxg4+ (35... hxg4 $2 36. Be3 $19) 36. Kd3 h4 $19) 32... Ne5 {[%emt 0:03:11]} (32... Qxh3 $1 $11 33. f4 Qxa3 (33... Qh4 34. Qd3 $11) 34. bxa3 g5 35. fxg5 Ne5) 33. f4 $1 $14 {[%emt 0:01:10]} Nxc4 {[%emt 0:01:08]} 34. Nxc4 {[%emt 0:00:06]} g5 $1 {[%emt 0:01:59]} 35. Qf3 $1 {[%emt 0:04:10]} gxf4 {[%emt 0:05:27]} 36. Rg2+ {[%emt 0:01:10]} (36. Bc3 $14 Qg3+ 37. Rg2) 36... Rg7 $1 $11 {[%emt 0:00:04]} 37. Bc3 {[%emt 0:00:32]} (37. Rxg7+ $11 {bleibt in der Remisbreite.} Kxg7 38. Kf1) 37... Rxg2+ $17 {[%emt 0:02:37]} 38. Qxg2+ {[%emt 0:00:27]} (38. Kxg2 $17 Qg5+ 39. Kf2) 38... Qg3 $19 {[%emt 0:02:00]} 39. e5 {[%emt 0:00:34]} (39. Nd2 $142) 39... dxe5 $19 {[%emt 0:01:55]} 40. Bxe5 {[%emt 0:00:29]} h4 {[%emt 0:03:38]} 41. d6 {[%emt 0:21:36]} (41. Qxg3+ {kämpft weiter.} fxg3 (41... hxg3 $2 42. c3 $19) 42. Kf1) 41... Bg7 $19 {[%emt 0:09:06]} 42. d7 {[%emt 0:05:06]} Rd8 {[%emt 0:00:10]} (42... Rxe5 43. d8=Q+ (43. d8=B $2 Re1#) 43... Kf7 44. Qxg3 (44. Nxe5+ Bxe5 45. Qxg3 hxg3 $18) 44... hxg3 45. Qd7+ (45. Nxe5+ Bxe5 46. Qd5+ Kf6 $18) 45... Re7 46. Nd6+ Kg8 47. Qxe7) 43. Kf1 {[%emt 0:03:53]} Rxd7 {[%emt 0:00:44]} 44. Bd6 {[%emt 0:00:18]} Kh8 {[%emt 0:05:12]} 45. Qe4 $2 {[%emt 0:01:04]} (45. Qe2 Qxh3+ 46. Ke1 Qh1+ 47. Kd2 Qd5+ 48. Kc1 Rxd6 49. Nxd6 Qxd6 50. Qh5+ Qh6 51. Qe8+ Kh7 52. Kb1) 45... Qxh3+ $19 {[%emt 0:01:21]} 46. Kf2 {[%emt 0:00:40]} Qg4 {[%emt 0:01:05]} 47. Ne5 {[%emt 0:00:49]} Bxe5 {[%emt 0:02:16]} 48. Bxe5+ {[%emt 0:00:13]} Kg8 {[%emt 0:00:06]} 49. Qc4+ {[%emt 0:00:24]} (49. Bd4 $142 Kf8 50. b3) 49... Kh7 {[%emt 0:00:09]} (49... Kf8 $142 50. Qc5+ Ke8 51. Qc8+ Ke7 52. Qc5+ Ke6) 50. Qe4+ {[%emt 0:00:38]} Qg6 {[%emt 0:00:07]} 0-1

[Event "Mitropa Cup Open 2024"]
[Site "Apolda"]
[Date "2024.02.17"]
[Round "3.17"]
[White "Vykouk, Jan"]
[Black "Moroni, Luca Jr"]
[Result "1-0"]
[ECO "B06"]
[WhiteElo "2493"]
[BlackElo "2601"]
[Annotator "RC"]
[PlyCount "159"]
[EventDate "2024.02.15"]
[EventType "team-tourn"]
[EventCountry "GER"]
[SourceTitle "playchess.com"]
[Source "ChessBase"]
[SourceQuality "1"]
[WhiteTeam "Czech Republic"]
[BlackTeam "Italy"]
[WhiteTeamCountry "CZE"]
[BlackTeamCountry "ITA"]
[TimeControl "40/5400+30:1800+30"]

1. e4 {[%emt 0:00:03]} g6 {[%emt 0:00:04]} 2. d4 {[%emt 0:00:05]} Bg7 {[%emt 0:00:03]} 3. Nc3 {[%emt 0:00:06]} a6 {[%emt 0:00:04]} 4. Be3 {[%emt 0:00:07]} b5 {[%emt 0:00:36]} 5. h4 {[%emt 0:00:11]} h5 {[%emt 0:00:13]} 6. Nh3 {[%emt 0:00:04]} Bb7 {[%emt 0:02:25]} 7. Ng5 {[%emt 0:00:36]} d6 {[%emt 0:01:38]} 8. Qd2 {[%emt 0:00:23]} e6 {[%emt 0:04:19]} 9. a4 {[%emt 0:00:49]} b4 {[%emt 0:03:48]} 10. Ne2 {[%emt 0:00:05]} a5 {[%emt 0:01:51]} 11. Nf4 {[%emt 0:02:08]} Nf6 {[%emt 0:13:48]} 12. f3 {[%emt 0:00:10]} Qd7 {[%emt 0:06:15]} 13. g3 {[%emt 0:02:25]} O-O {[%emt 0:19:44]} 14. Bh3 {[%emt 0:02:29]} Qe8 {[%emt 0:02:01]} 15. O-O {[%emt 0:36:42]} e5 {[%emt 0:06:14]} 16. dxe5 {[%emt 0:00:05]} Qxe5 {[%emt 0:01:55]} 17. Nd3 {[%emt 0:06:02]} Qe7 {[%emt 0:02:31]} 18. Rae1 {[%emt 0:00:08]} Nbd7 {[%emt 0:03:34]} 19. b3 {[%emt 0:07:18]} Rad8 {[%emt 0:05:27]} 20. Qf2 {[%emt 0:00:25]} Rfe8 {[%emt 0:04:43]} 21. Bd4 {[%emt 0:01:54]} Qf8 {[%emt 0:06:35]} 22. Ba1 {[%emt 0:00:50]} c5 {[%emt 0:01:51]} 23. Rd1 {[%emt 0:00:44]} Ba6 {[%emt 0:01:44]} 24. Rfe1 {[%emt 0:00:12]} Bxd3 {[%emt 0:02:04]} 25. Rxd3 {[%emt 0:04:56]} Ne5 {[%emt 0:02:26]} 26. Rd2 {[%emt 0:01:24]} Nh7 {[%emt 0:03:36]} 27. Nxh7 {[%emt 0:08:05]} Kxh7 {[%emt 0:00:01]} 28. f4 {[%emt 0:00:29]} Nc6 {[%emt 0:00:29]} 29. e5 {[%emt 0:00:04]} Qe7 {[%emt 0:03:30]} 30. Bg2 {[%emt 0:03:19]} Nd4 {[%emt 0:01:12]} 31. Bxd4 {[%emt 0:02:29]} cxd4 {[%emt 0:00:05]} 32. Bc6 {[%emt 0:00:50]} Rf8 {[%emt 0:00:26]} 33. exd6 {[%emt 0:01:56]} Qxd6 {[%emt 0:00:02]} 34. Qf3 {[%emt 0:00:19]} Qc5 {[%emt 0:01:33]} 35. Kg2 {[%emt 0:01:02]} d3 {[%emt 0:00:31]} 36. cxd3 {[%emt 0:01:24]} Bc3 {[%emt 0:00:36]} 37. Rc2 {[%emt 0:01:38]} Qd6 {[%emt 0:00:20]} 38. Re3 {[%emt 0:01:15]} Bd4 {[%emt 0:00:40]} 39. Ree2 {[%emt 0:00:07]} Bc3 {[%emt 0:00:24]} 40. Bb5 {[%emt 0:01:00]} Kg7 {[%emt 0:00:32]} 41. Re4 {[%emt 0:32:33]} Rc8 {[%emt 0:10:43]} 42. Rce2 {[%emt 0:00:00]} Bf6 {[%emt 0:00:42]} 43. Bc4 {[%emt 0:00:00]} Rc7 {[%emt 0:00:18]} 44. f5 {[%emt 0:00:00]} Rc5 {[%emt 0:13:54]} 45. fxg6 {[%emt 0:00:00]} fxg6 {[%emt 0:00:06]} 46. Rf4 {[%emt 0:00:00]} Re5 {[%emt 0:03:22]} 47. Rf2 {[%emt 0:00:00]} Qe7 {[%emt 0:02:29]} 48. Qc6 {[%emt 0:00:00]} Re3 {[%emt 0:01:15]} 49. Qd5 {[%emt 0:03:07]} Qe5 {[%emt 0:01:39]} 50. Qxe5 {[%emt 0:02:20]} Rxe5 {[%emt 0:00:02]} 51. Rd4 {[%emt 0:03:19]} Re3 {[%emt 0:01:05]} 52. Rd7+ {[%emt 0:00:06]} Re7 {[%emt 0:00:28]} 53. Rd6 {[%emt 0:01:20]} Re3 {[%emt 0:00:32]} 54. Ra6 {[%emt 0:00:51]} Re5 {[%emt 0:00:26]} 55. d4 {[%emt 0:01:11]} Re3 {[%emt 0:00:35]} 56. Rf4 {[%emt 0:01:52]} Rc3 {[%emt 0:00:29]} 57. Rxa5 {[%emt 0:00:36]} Rc2+ {[%emt 0:00:29]} 58. Kh3 {[%emt 0:00:35]} Bxd4 {[%emt 0:00:31]} 59. Rxf8 Kxf8 {[%emt 0:00:01]} 60. Rd5 {[%emt 0:04:55]} Bg1 {[%emt 0:01:00]} 61. g4 {[%emt 0:00:01]} hxg4+ {[%emt 0:00:28]} 62. Kxg4 {[%emt 0:00:08]} Rg2+ {[%emt 0:00:32]} 63. Kf3 {[%emt 0:00:19]} Rf2+ {[%emt 0:00:20]} 64. Kg3 {[%emt 0:00:10]} Ra2 {[%emt 0:00:19]} 65. a5 {[%emt 0:01:18]} Ke7 {[%emt 0:00:14]} 66. a6 {[%emt 0:00:05]} Kf6 {[%emt 0:00:49]} 67. Rd6+ {[%emt 0:00:52]} Kg7 {[%emt 0:00:14]} 68. Rd7+ {[%emt 0:00:25]} Kf6 {[%emt 0:00:03]} 69. Rb7 {[%emt 0:00:30]} Bc5 {[%emt 0:00:35]} 70. Kf3 {[%emt 0:00:32]} Ke5 {[%emt 0:00:55]} 71. Rd7 {[%emt 0:00:04]} Bg1 {[%emt 0:00:52]} 72. Rd5+ {[%emt 0:00:27]} Kf6 {[%emt 0:00:05]} 73. Rd6+ {[%emt 0:01:04]} Kf5 {[%emt 0:00:39]} 74. Bd3+ {[%emt 0:00:39]} Ke5 {[%emt 0:00:02]} 75. Rxg6 {[%emt 0:00:21]} Rf2+ {[%emt 0:00:20]} 76. Kg3 {[%emt 0:00:18]} Ra2 {[%emt 0:00:33]} 77. h5 {[%emt 0:00:37]} Be3 {[%emt 0:00:46]} 78. Bc4 {[%emt 0:00:29]} Bd4 {[%emt 0:00:20]} 79. h6 {[%emt 0:00:33]} Kf5 {[%emt 0:00:45]} 80. Bd3+ {[%emt 0:00:10]} 1-0